bitfinex/quotes_SOLUSD_20250315
["timestamp","ask_amount","ask_price","bid_price","bid_amount"]
[1742031131876,13.48061125,133.22,133.2,6.38]
[1742031136098,13.48061125,133.21,133.2,6.38]
[1742031136268,13.48061125,133.21,133.19,207.6]
[1742031136470,13.48061125,133.2,133.19,207.6]
[1742031137890,13.48061125,133.2,133.18,0.063]
[1742031137891,20.98811125,133.2,133.18,0.063]
[1742031138095,13.48061125,133.19,133.18,0.063]
[1742031139184,20.98861125,133.19,133.18,0.063]
[1742031141891,13.48061125,133.19,133.18,0.063]
[1742031142168,13.48061125,133.2,133.18,0.063]
[1742031145301,20.0,133.19,133.18,0.063]
[1742031155706,33.48061125,133.19,133.18,0.063]
[1742031159087,20.0,133.19,133.18,0.063]
[1742031161187,20.03,133.19,133.18,0.063]
[1742031177425,0.03,133.19,133.18,0.063]
[1742031178625,0.03,133.19,133.18,7.5716]
[1742031179205,0.03,133.19,133.18,21.05221125]
[1742031182333,0.03,133.19,133.18,22.67021125]
[1742031182520,0.03,133.2,133.18,122.01986011]
[1742031182706,0.03,133.2,133.19,13.48061125]
[1742031183630,0.03,133.2,133.19,20.98861125]
[1742031185128,0.03,133.2,133.19,39.63826011]
[1742031193235,0.063,133.23,133.2,18.64964886]
[1742031193419,0.063,133.23,133.21,19.84061125]
[1742031194029,0.063,133.23,133.22,32.13026011]
[1742031194229,0.063,133.23,133.22,39.63656011]
[1742031195544,0.063,133.23,133.22,41.21756011]
[1742031197222,0.063,133.24,133.23,0.28432314]
[1742031197438,0.0001,133.24,133.23,119.77198325]
[1742031198129,0.0001,133.24,133.23,120.27198325]
[1742031198841,0.0001,133.24,133.23,127.77778325]
[1742031201326,0.0001,133.24,133.23,439.77778325]
[1742031202548,0.0001,133.24,133.23,127.77778325]
[1742031204540,0.063,133.27,133.26,7.78842314]
[1742031204845,0.063,133.27,133.26,109.91623439]
[1742031205643,0.063,133.29,133.26,148.9513224]
[1742031205858,0.063,133.29,133.28,13.76493439]
[1742031206635,0.0001,133.29,133.28,21.26793439]
[1742031206842,0.0001,133.29,133.28,94.96499607]
[1742031207336,0.0001,133.29,133.28,175.66489607]
[1742031207552,0.0001,133.29,133.28,174.53992825]
[1742031207737,0.0001,133.29,133.28,181.19732825]
[1742031208240,0.063,133.32,133.29,0.28432314]
[1742031208458,0.063,133.32,133.31,13.48061125]
[1742031208752,0.063,133.32,133.31,19.84061125]
[1742031209046,0.063,133.32,133.31,27.34191125]
[1742031215152,0.063,133.32,133.31,45.99156011]
[1742031216048,0.063,133.32,133.31,128.19336011]
[1742031219652,0.063,133.32,133.31,128.33552168]
[1742031222355,0.063,133.32,133.31,128.19336011]
[1742031224761,0.063,133.32,133.31,100.54051125]
[1742031229065,0.063,133.32,133.31,108.04181125]
[1742031229568,0.063,133.32,133.31,100.54051125]
[1742031233569,0.063,133.32,133.31,87.0599]
[1742031234970,0.063,133.32,133.28,80.7629]
[1742031235269,13.48061125,133.31,133.29,6.36]
[1742031235573,13.54361125,133.32,133.29,6.36]
[1742031235874,0.063,133.32,133.29,6.36]
[1742031236079,0.063,133.32,133.29,19.84061125]
[1742031237469,0.063,133.32,133.29,6.36]
[1742031240991,0.063,133.32,133.3,6.36]
[1742031242556,0.063,133.32,133.3,13.8617]
[1742031242763,0.063,133.32,133.3,27.34231125]
[1742031242952,0.063,133.32,133.3,6.36]
[1742031243360,13.48061125,133.31,133.3,6.36]
[1742031243956,0.063,133.32,133.3,6.36]
[1742031245378,13.54361125,133.32,133.3,6.36]
[1742031247867,13.48061125,133.31,133.3,6.36]
[1742031248465,13.48061125,133.31,133.29,6.38]
[1742031249593,20.98191125,133.31,133.29,6.38]
[1742031249997,13.48061125,133.3,133.29,6.38]
[1742031250165,13.48061125,133.3,133.28,0.063]
[1742031250562,7.5013,133.31,133.28,0.063]
[1742031250774,20.98191125,133.31,133.28,0.063]
[1742031251467,13.48061125,133.3,133.28,0.063]
[1742031251668,13.48061125,133.3,133.28,6.443]
[1742031252694,20.98211125,133.31,133.28,6.443]
[1742031253792,40.98211125,133.31,133.28,6.443]
[1742031254174,20.0,133.31,133.28,6.443]
[1742031256688,20.0,133.31,133.29,6.38]
[1742031257675,33.48061125,133.31,133.29,6.38]
[1742031259696,40.98211125,133.31,133.29,6.38]
[1742031259902,33.48061125,133.31,133.29,6.38]
[1742031260078,40.98191125,133.31,133.29,6.38]
[1742031260593,13.48061125,133.3,133.29,6.38]
[1742031261705,33.48061125,133.31,133.29,6.38]
[1742031264197,40.98191125,133.31,133.29,6.38]
[1742031264391,40.98191125,133.31,133.28,6.443]
[1742031264599,33.48061125,133.31,133.28,6.443]
[1742031266688,40.98191125,133.31,133.28,6.443]
[1742031269407,41.01191125,133.31,133.28,6.443]
[1742031273109,20.03,133.31,133.28,6.443]
[1742031273296,20.03,133.31,133.28,13.9459]
[1742031274692,20.03,133.31,133.28,6.443]
[1742031278204,33.51061125,133.31,133.28,6.443]
[1742031280116,20.03,133.31,133.28,13.9459]
[1742031280411,20.03,133.31,133.28,6.443]
[1742031280798,33.51061125,133.31,133.28,6.443]
[1742031282005,20.03,133.31,133.28,6.443]
[1742031283414,20.03,133.31,133.28,13.9459]
[1742031289405,20.03,133.31,133.28,6.443]
[1742031290722,41.01211125,133.31,133.28,6.443]
[1742031291065,33.51061125,133.31,133.28,6.443]
[1742031292633,20.03,133.31,133.28,6.443]
[1742031292930,20.03,133.31,133.28,13.9459]
[1742031294855,20.03,133.31,133.28,27.42651125]
[1742031296928,0.03,133.31,133.28,27.42651125]
[1742031297141,0.03,133.31,133.29,13.48061125]
[1742031298575,0.03,133.31,133.29,94.18061125]
[1742031299054,0.03,133.31,133.3,20.98241125]
[1742031299353,0.03,133.31,133.3,7.5018]
[1742031302564,0.03,133.31,133.3,20.98241125]
[1742031303060,0.03,133.31,133.3,101.68241125]
[1742031303358,0.03,133.31,133.3,120.33206011]
[1742031305664,0.03,133.31,133.3,121.91146011]
[1742031306261,0.03,133.31,133.3,122.19578325]
[1742031308467,0.063,133.32,133.31,0.28432314]
[1742031308669,0.063,133.32,133.31,13.76493439]
[1742031309956,0.063,133.32,133.31,21.26623439]
[1742031310740,0.063,133.32,133.31,21.26623439]
[1742031313256,0.063,133.32,133.31,101.96623439]
[1742031313953,0.063,133.33,133.31,101.96623439]
[1742031314157,0.063,133.33,133.32,32.13026011]
[1742031314451,0.063,133.33,133.32,113.11458325]
[1742031314840,0.0001,133.33,133.32,113.11458325]
[1742031315039,0.0001,133.33,133.32,114.73913432]
[1742031315639,0.063,133.36,133.35,13.48061125]
[1742031315840,0.063,133.36,133.35,100.52061125]
[1742031316360,0.063,133.36,133.35,126.66926011]
[1742031317536,0.063,133.36,133.35,126.95358325]
[1742031321457,0.063,133.36,133.35,100.52061125]
[1742031321760,0.063,133.36,133.35,87.04]
[1742031322645,0.063,133.36,133.35,80.7]
[1742031322848,0.063,133.36,133.35,87.04]
[1742031324146,0.063,133.36,133.35,6.34]
[1742031324359,0.063,133.36,133.33,88.2001]
[1742031324544,0.063,133.36,133.34,6.34]
[1742031324948,0.063,133.36,133.34,13.8395]
[1742031326460,0.063,133.36,133.34,27.32011125]
[1742031326675,0.063,133.36,133.34,13.8395]
[1742031327554,0.063,133.36,133.34,27.32011125]
[1742031327968,0.063,133.36,133.34,108.02011125]
[1742031329261,0.063,133.36,133.35,13.48061125]
[1742031329852,0.063,133.36,133.35,7.499]
[1742031330775,0.063,133.36,133.34,94.5394]
[1742031332471,0.063,133.36,133.34,87.04]
[1742031339481,0.063,133.36,133.34,80.7]
[1742031339659,13.54361125,133.36,133.35,6.34]
[1742031340355,13.54361125,133.36,133.31,80.7]
[1742031340560,13.48061125,133.35,133.32,6.34]
[1742031341083,20.98011125,133.35,133.32,6.34]
[1742031341281,13.48061125,133.35,133.32,6.34]
[1742031341459,20.97981125,133.35,133.32,6.34]
[1742031342490,13.48061125,133.33,133.31,80.7]
[1742031342661,13.48061125,133.33,133.32,6.36]
[1742031343176,20.98071125,133.33,133.32,6.36]
[1742031344960,20.98071125,133.33,133.29,207.36]
[1742031345180,13.48061125,133.32,133.3,6.34]
[1742031347281,13.48061125,133.33,133.3,6.34]
[1742031349280,13.48061125,133.32,133.3,6.34]
[1742031351178,33.48061125,133.31,133.3,6.34]
[1742031351581,20.98191125,133.31,133.3,6.34]
[1742031352782,20.98191125,133.31,133.29,207.36]
[1742031352991,20.98241125,133.3,133.28,0.063]
[1742031353198,13.48061125,133.29,133.28,6.423]
[1742031354583,20.98301125,133.29,133.28,6.423]
[1742031354988,20.98301125,133.29,133.28,0.063]
[1742031360997,13.48061125,133.29,133.28,0.063]
[1742031362199,20.98301125,133.29,133.28,0.063]
[1742031368575,13.48061125,133.29,133.28,0.063]
[1742031368999,20.98301125,133.29,133.28,0.063]
[1742031369504,13.48061125,133.29,133.28,0.063]
[1742031369803,13.48061125,133.3,133.28,0.063]
[1742031370899,13.48061125,133.31,133.28,0.063]
[1742031374104,13.48061125,133.3,133.28,0.063]
[1742031375003,33.48061125,133.29,133.28,0.063]
[1742031376911,40.98301125,133.29,133.28,0.063]
[1742031378911,33.48061125,133.29,133.28,0.063]
[1742031382118,40.98301125,133.29,133.28,0.063]
[1742031382305,33.48061125,133.29,133.28,0.063]
[1742031383113,40.98301125,133.29,133.28,0.063]
[1742031383803,33.48061125,133.29,133.28,0.063]
[1742031388813,20.0,133.29,133.28,0.063]
[1742031389909,13.48061125,133.3,133.28,0.063]
[1742031391812,0.17216157,133.34,133.28,0.063]
[1742031391813,13.48061125,133.29,133.28,0.063]
[1742031394105,13.48061125,133.3,133.28,0.063]
[1742031394415,33.48061125,133.29,133.28,0.063]
[1742031399725,20.0,133.29,133.28,0.063]
[1742031401305,33.48061125,133.29,133.28,0.063]
[1742031401622,20.0,133.29,133.28,0.063]
[1742031402821,33.48061125,133.29,133.28,0.063]
[1742031403122,40.98301125,133.29,133.28,0.063]
[1742031406811,0.14216157,133.28,133.22,1.7107]
[1742031407122,13.48061125,133.23,133.22,0.063]
[1742031407624,13.48061125,133.23,133.22,6.423]
[1742031408003,13.48061125,133.24,133.22,6.423]
[1742031408319,20.98581125,133.24,133.22,6.423]
[1742031409124,13.48061125,133.24,133.22,6.423]
[1742031409321,33.48061125,133.25,133.22,6.423]
[1742031410126,33.48061125,133.25,133.22,13.9292]
[1742031411033,13.48061125,133.27,133.22,13.9292]
[1742031411320,13.48061125,133.28,133.23,1.6081]
[1742031412528,13.48061125,133.28,133.24,7.5052]
[1742031415332,13.51061125,133.28,133.24,7.5052]
[1742031417432,0.03,133.28,133.24,7.5052]
[1742031418013,0.03,133.28,133.24,20.98581125]
[1742031421727,0.03,133.28,133.24,7.5052]
[1742031421926,13.51061125,133.28,133.24,7.5052]
[1742031422429,0.03,133.28,133.24,20.98581125]
[1742031423239,0.03,133.28,133.25,13.48061125]
[1742031423419,0.03,133.28,133.27,9.1643]
[1742031423614,0.03,133.28,133.27,29.00491125]
[1742031423814,0.03,133.28,133.27,1.6608]
[1742031423815,6.216,133.28,133.27,1.6608]
[1742031424032,6.216,133.28,133.22,0.063]
[1742031424033,20.0,133.25,133.22,0.063]
[1742031424243,13.48061125,133.24,133.22,0.063]
[1742031424424,33.48061125,133.25,133.22,0.063]
[1742031429444,53.952445,133.28,133.22,19.72781125]
[1742031429445,13.48061125,133.27,133.22,19.72781125]
[1742031429621,0.03,133.28,133.22,19.72781125]
[1742031429622,13.51061125,133.28,133.22,19.72781125]
[1742031429826,20.0,133.25,133.22,100.42781125]
[1742031430042,20.0,133.25,133.22,86.9472]
[1742031431644,20.0,133.25,133.22,100.42781125]
[1742031431841,7.5333,133.28,133.23,13.48061125]
[1742031432035,7.5333,133.28,133.24,6.48]
[1742031432845,21.01391125,133.28,133.24,6.48]
[1742031435246,13.48061125,133.27,133.24,6.48]
[1742031436655,7.5041,133.26,133.24,6.48]
[1742031438147,13.48061125,133.27,133.24,6.48]
[1742031439242,13.51061125,133.28,133.24,6.48]
[1742031440350,13.51061125,133.28,133.24,6.543]
[1742031442149,20.0,133.27,133.24,6.543]
[1742031442355,20.0,133.27,133.25,1.5498]
[1742031442750,0.03,133.28,133.25,95.73041125]
[1742031444053,0.03,133.28,133.25,103.23491125]
[1742031444271,0.03,133.28,133.26,13.48061125]
[1742031444558,0.03,133.28,133.26,94.18061125]
[1742031445959,0.03,133.28,133.26,101.68441125]
[1742031446339,0.03,133.28,133.26,80.7]
[1742031448160,0.03,133.28,133.25,103.23491125]
[1742031448864,0.03,133.28,133.25,89.7543]
[1742031449362,0.03,133.28,133.25,103.23491125]
[1742031449663,0.03,133.28,133.26,6.44]
[1742031451363,0.03,133.28,133.26,13.9439]
[1742031453946,0.03,133.28,133.26,108.12451125]
[1742031456566,0.03,133.28,133.26,27.42451125]
[1742031457366,0.03,133.28,133.27,20.98411125]
[1742031461371,0.03,133.28,133.27,7.5035]
[1742031462362,0.03,133.28,133.26,87.14]
[1742031462568,13.51061125,133.28,133.26,87.14]
[1742031462974,13.51061125,133.28,133.26,80.7]
[1742031463269,20.03,133.28,133.27,6.42]
[1742031464247,0.03,133.28,133.27,13.9235]
[1742031465270,20.03,133.28,133.27,13.9235]
[1742031466755,20.03,133.28,133.27,6.42]
[1742031467254,0.03,133.28,133.27,6.42]
[1742031471962,0.03,133.28,133.27,13.9235]
[1742031473073,0.03,133.28,133.27,6.42]
[1742031473455,0.03,133.28,133.27,13.9235]
[1742031475073,0.03,133.28,133.27,27.40411125]
[1742031475652,0.03,133.28,133.27,13.9235]
[1742031475871,0.03,133.28,133.27,13.9865]
[1742031476065,0.03,133.28,133.27,6.483]
[1742031476857,0.03,133.28,133.27,13.9865]
[1742031478158,0.03,133.28,133.27,6.483]
[1742031479878,0.03,133.28,133.27,13.9865]
[1742031480472,0.03,133.28,133.27,6.483]
[1742031481688,0.03,133.28,133.27,13.9865]
[1742031483270,0.03,133.28,133.27,27.46711125]
[1742031483574,0.03,133.28,133.27,13.9865]
[1742031496301,0.03,133.28,133.27,32.63614886]
[1742031496709,0.03,133.28,133.27,46.11676011]
[1742031496912,0.03,133.28,133.27,32.63614886]
[1742031498408,0.03,133.28,133.27,46.11676011]
[1742031500903,0.03,133.28,133.27,126.81676011]
[1742031501509,0.03,133.28,133.27,113.33614886]
[1742031501689,0.03,133.28,133.27,126.81676011]
[1742031506005,0.03,133.28,133.27,113.33614886]
[1742031506612,0.03,133.28,133.27,126.81676011]
[1742031507109,0.03,133.28,133.27,113.33614886]
[1742031508386,0.03,133.28,133.27,94.6865]
[1742031510812,0.03,133.34,133.3,0.14216157]
[1742031510987,0.03,133.34,133.32,13.48061125]
[1742031511188,0.03,133.34,133.33,6.38]
[1742031512301,0.03,133.34,133.33,13.8801]
[1742031513313,0.03,133.34,133.33,128.56448325]
[1742031515512,0.03,133.34,133.33,128.28016011]
[1742031522420,0.03,133.34,133.33,87.1]
[1742031525118,0.03,133.34,133.33,94.6001]
[1742031525413,0.03,133.34,133.33,108.08071125]
[1742031525619,0.03,133.34,133.33,126.73036011]
[1742031526312,0.03,133.34,133.33,127.01468325]
[1742031526701,0.03,133.34,133.33,128.58448325]
[1742031527318,0.063,133.36,133.33,128.58448325]
[1742031527518,0.063,133.36,133.35,13.76493439]
[1742031528519,0.063,133.36,133.35,426.23891042]
[1742031528718,0.063,133.36,133.35,432.61358325]
[1742031530905,0.063,133.36,133.35,127.01358325]
[1742031535321,0.063,133.36,133.35,120.32926011]
[1742031535513,0.063,133.36,133.35,126.72926011]
[1742031537505,0.063,133.36,133.35,438.72926011]
[1742031538009,0.063,133.36,133.35,126.72926011]
[1742031539105,0.063,133.37,133.36,99.633972]
[1742031539300,0.063,133.37,133.36,113.11458325]
[1742031539521,0.063,133.37,133.36,120.61308325]
[1742031540608,0.0001,133.38,133.36,129.96671646]
[1742031540807,0.0001,133.38,133.37,32.41458325]
[1742031541101,0.0001,133.38,133.37,344.41458325]
[1742031541729,0.0001,133.38,133.37,351.91248325]
[1742031542827,0.0001,133.38,133.37,559.25248325]
[1742031543945,9.6e-05,133.39,133.38,18.933972]
[1742031544227,9.6e-05,133.39,133.38,32.41458325]
[1742031544619,9.6e-05,133.39,133.38,113.11458325]
[1742031544830,9.6e-05,133.39,133.38,114.73853043]
[1742031545708,9.6e-05,133.39,133.38,122.23583043]
[1742031546310,5.826e-05,133.42,133.41,18.933972]
[1742031546511,5.826e-05,133.42,133.41,173.43702825]
[1742031546920,5.826e-05,133.42,133.41,173.93702825]
[1742031547108,5.826e-05,133.42,133.41,120.01458325]
[1742031547320,0.03,133.48,133.44,0.28432314]
[1742031547507,0.03,133.48,133.47,32.13026011]
[1742031547709,0.03,133.48,133.47,126.72256011]
[1742031547914,0.03,133.48,133.47,127.00688325]
[1742031548322,0.03,133.48,133.47,126.72256011]
[1742031549018,0.03,133.48,133.47,119.23026011]
[1742031549431,0.03,133.48,133.47,100.58061125]
[1742031549636,0.03,133.48,133.47,119.23026011]
[1742031549927,0.03,133.48,133.47,119.51458325]
[1742031550127,0.03,133.48,133.47,127.00688325]
[1742031550436,0.03,133.48,133.47,119.51458325]
[1742031553423,0.03,133.48,133.47,6.4]
[1742031557530,0.03,133.48,133.47,13.8923]
[1742031558039,0.03,133.48,133.47,6.4]
[1742031560331,0.03,133.48,133.46,39.62306011]
[1742031560542,0.03,133.48,133.47,6.4]
[1742031562833,0.03,133.48,133.45,80.7]
[1742031563034,33.51061125,133.48,133.46,6.4]
[1742031563627,33.51061125,133.48,133.47,6.4]
[1742031564228,41.00231125,133.48,133.47,6.4]
[1742031564839,33.51061125,133.48,133.47,6.4]
[1742031565525,20.03,133.48,133.47,6.4]
[1742031566134,41.00231125,133.48,133.47,6.4]
[1742031567746,20.03,133.48,133.47,6.4]
[1742031568326,33.51061125,133.48,133.47,6.4]
[1742031569444,20.03,133.48,133.47,6.4]
[1742031570154,0.03,133.48,133.47,6.4]
[1742031570850,0.03,133.48,133.47,13.8923]
[1742031572031,0.03,133.48,133.47,108.35723439]
[1742031573146,0.03,133.48,133.47,127.00688325]
[1742031575151,0.03,133.48,133.47,439.00688325]
[1742031576730,0.03,133.48,133.47,442.82659352]
[1742031576937,13.51061125,133.55,133.49,0.28432314]
[1742031577144,13.51061125,133.55,133.5,18.64964886]
[1742031577338,13.48061125,133.54,133.5,18.64964886]
[1742031577848,0.03,133.55,133.5,18.64964886]
[1742031578048,13.48061125,133.54,133.5,18.64964886]
[1742031578456,13.48061125,133.54,133.5,26.13974886]
[1742031580154,13.48061125,133.54,133.5,106.83974886]
[1742031580355,0.03,133.55,133.5,106.83974886]
[1742031580549,13.48061125,133.54,133.5,106.83974886]
[1742031582259,13.48061125,133.54,133.5,88.1901]
[1742031582461,13.48061125,133.53,133.5,80.7]
[1742031582971,13.48061125,133.52,133.5,80.7]
[1742031583155,13.48061125,133.52,133.48,106.84114886]
[1742031583864,13.48061125,133.52,133.49,6.38]
[1742031584460,13.48061125,133.51,133.49,6.38]
[1742031584763,13.48061125,133.5,133.46,82.2253]
[1742031585172,13.48061125,133.5,133.47,6.38]
[1742031587771,13.48061125,133.51,133.47,6.38]
[1742031588284,13.48061125,133.5,133.47,6.38]
[1742031588457,13.48061125,133.51,133.47,13.8722]
[1742031588651,13.51061125,133.52,133.47,13.8722]
[1742031589390,13.51061125,133.52,133.48,18.64964886]
[1742031589568,0.03,133.52,133.48,32.13026011]
[1742031589763,0.03,133.52,133.49,7.4911]
[1742031590064,0.03,133.52,133.49,101.67171125]
[1742031592867,0.03,133.52,133.49,88.1911]
[1742031593278,0.03,133.52,133.49,101.67171125]
[1742031593875,13.51061125,133.52,133.49,80.7]
[1742031594276,13.51061125,133.52,133.49,88.1911]
[1742031594968,0.03,133.52,133.49,88.1911]
[1742031597255,0.03,133.52,133.5,18.64964886]
[1742031597766,0.03,133.52,133.51,7.49]
[1742031598804,0.03,133.52,133.5,7.4904]
[1742031600184,0.03,133.52,133.5,26.14004886]
[1742031600673,0.03,133.52,133.5,106.84004886]
[1742031608773,18.03,133.53,133.5,106.84004886]
[1742031610368,13.51061125,133.55,133.51,18.64964886]
[1742031610572,0.03,133.55,133.52,6.38]
[1742031610981,0.03,133.55,133.53,18.64964886]
[1742031611581,0.03,133.55,133.54,7.4883]
[1742031615880,31.51061125,133.57,133.54,7.4883]
[1742031616200,20.0,133.57,133.54,7.4883]
[1742031617505,33.48061125,133.57,133.54,7.4883]
[1742031619192,13.48061125,133.55,133.53,80.7]
[1742031619399,13.48061125,133.54,133.51,207.12]
[1742031619693,13.48061125,133.52,133.47,1.6716]
[1742031619870,13.48061125,133.49,133.48,6.38]
[1742031622581,13.48061125,133.49,133.47,0.063]
[1742031622899,13.48061125,133.49,133.48,6.38]
[1742031624183,13.48061125,133.5,133.48,6.38]
[1742031626397,13.48061125,133.53,133.48,100.56061125]
[1742031626602,13.48061125,133.53,133.48,109.66071125]
[1742031626903,13.48061125,133.53,133.48,96.1801]
[1742031627289,13.48061125,133.52,133.48,96.1801]
[1742031629590,13.48061125,133.5,133.48,87.08]
[1742031629785,13.48061125,133.5,133.48,6.38]
[1742031630507,13.48061125,133.51,133.48,6.38]
[1742031630886,13.48061125,133.5,133.48,6.38]
[1742031631211,13.48061125,133.51,133.48,6.38]
[1742031631701,13.48061125,133.51,133.48,13.8715]
[1742031632091,20.0,133.51,133.48,13.8715]
[1742031632297,20.0,133.51,133.49,6.38]
[1742031632491,33.48061125,133.51,133.49,6.38]
[1742031632799,20.0,133.51,133.49,6.38]
[1742031633003,20.0,133.51,133.49,13.8709]
[1742031633209,20.0,133.52,133.49,13.8709]
[1742031635107,13.48061125,133.53,133.49,13.8709]
[1742031636791,13.48061125,133.52,133.49,13.8709]
[1742031637592,13.48061125,133.52,133.49,6.38]
[1742031638009,13.48061125,133.51,133.49,6.38]
[1742031638908,13.48061125,133.51,133.5,6.38]
[1742031644716,20.97061125,133.51,133.5,6.38]
[1742031649705,20.97061125,133.51,133.49,0.063]
[1742031649904,20.97061125,133.51,133.49,6.423]
[1742031649905,13.48061125,133.5,133.49,6.423]
[1742031653829,13.48061125,133.5,133.49,0.063]
[1742031654028,13.48061125,133.5,133.49,6.423]
[1742031654407,20.97121125,133.5,133.49,6.423]
[1742031654613,13.48061125,133.5,133.49,6.423]
[1742031663445,13.48061125,133.5,133.49,0.063]
[1742031663641,20.97121125,133.5,133.49,6.423]
[1742031669351,13.48061125,133.5,133.49,6.423]
[1742031669935,20.97121125,133.5,133.49,6.423]
[1742031672038,13.48061125,133.5,133.49,6.423]
[1742031672442,13.48061125,133.51,133.49,6.423]
[1742031672640,13.48061125,133.51,133.49,13.9141]
[1742031673755,20.0,133.53,133.5,1.6001]
[1742031673955,13.48061125,133.52,133.5,1.6001]
[1742031674537,13.48061125,133.51,133.5,1.6001]
[1742031675259,13.48061125,133.51,133.49,6.423]
[1742031675462,27.489,133.53,133.49,6.423]
[1742031675463,13.48061125,133.5,133.49,6.423]
[1742031677254,13.48061125,133.5,133.49,6.423]
[1742031677846,13.48061125,133.51,133.49,13.9141]
[1742031679240,33.48061125,133.52,133.49,13.9141]
[1742031680059,13.48061125,133.51,133.49,6.423]
[1742031680663,33.48061125,133.5,133.49,6.423]
[1742031681859,40.97121125,133.5,133.49,6.423]
[1742031682658,40.97121125,133.5,133.49,0.063]
[1742031692464,33.48061125,133.5,133.49,0.063]
[1742031693677,40.97121125,133.5,133.49,0.063]
[1742031696278,33.48061125,133.5,133.49,0.063]
[1742031698359,40.97121125,133.5,133.49,0.063]
[1742031699381,33.48061125,133.5,133.49,0.063]
[1742031700478,40.97121125,133.5,133.49,0.063]
[1742031702366,33.48061125,133.5,133.49,0.063]
[1742031714194,13.48061125,133.51,133.49,0.063]
[1742031716512,33.48061125,133.5,133.49,0.063]
[1742031727402,13.48061125,133.51,133.49,0.063]
[1742031727705,13.48061125,133.52,133.49,0.063]
[1742031728406,13.48061125,133.53,133.49,0.063]
[1742031728904,13.48061125,133.52,133.49,0.063]
[1742031729109,11.74204383,133.56,133.49,0.063]
[1742031729310,13.48061125,133.53,133.49,0.063]
[1742031729497,33.48061125,133.53,133.49,0.063]
[1742031730307,11.74204383,133.56,133.49,0.063]
[1742031730489,11.74204383,133.56,133.51,1.5717]
[1742031730817,13.48061125,133.56,133.52,6.34]
[1742031731314,20.0,133.55,133.52,6.34]
[1742031731995,20.0,133.55,133.52,13.829]
[1742031732401,33.48061125,133.55,133.52,13.829]
[1742031736605,33.48061125,133.56,133.52,13.829]
[1742031736795,13.48061125,133.55,133.52,13.829]
[1742031738319,20.0,133.56,133.52,13.829]
[1742031738505,33.48061125,133.56,133.52,13.829]
[1742031739711,13.48061125,133.55,133.52,13.829]
[1742031740712,33.48061125,133.56,133.52,13.829]
[1742031742916,20.0,133.56,133.52,32.5527]
[1742031743122,0.03,133.57,133.54,13.48061125]
[1742031743325,0.03,133.57,133.55,1.5724]
[1742031744308,0.03,133.57,133.56,7.4872]
[1742031744931,0.03,133.57,133.55,9.06]
[1742031751114,0.03,133.57,133.55,103.24061125]
[1742031751519,0.03,133.57,133.56,13.48061125]
[1742031751713,0.03,133.57,133.55,103.24061125]
[1742031752632,0.03,133.57,133.56,18.79181043]
[1742031752821,0.03,133.57,133.56,32.27242168]
[1742031753134,0.03,133.57,133.56,32.41458325]
[1742031754922,0.03,133.57,133.56,39.90178325]
[1742031755832,0.03,133.57,133.56,26.27901043]
[1742031756227,13.51061125,133.57,133.55,1.5724]
[1742031756421,13.51061125,133.57,133.56,6.34]
[1742031756617,0.03,133.57,133.56,6.34]
[1742031761945,0.03,133.57,133.56,13.8272]
[1742031764441,0.03,133.57,133.56,6.34]
[1742031766121,0.03,133.57,133.56,13.8272]